fUST/lending_fUST_20251225
["ID","MTS","AMOUNT","RATE_DAILY","PERIOD"]
[399668123,1766596238562,-500.0,6.223e-05,2]
[399668125,1766596238573,-500.0,6.223e-05,2]
[399668127,1766596238583,-500.0,6.223e-05,2]
[399668129,1766596238592,-500.0,6.223e-05,2]
[399668131,1766596238603,-500.0,6.223e-05,2]
[399668133,1766596238613,-449.68169694,6.223e-05,2]
[399668135,1766596238623,-333.45757562,6.223e-05,2]
[399668137,1766596238634,-500.0,6.223e-05,2]
[399668139,1766596238644,-500.0,6.223e-05,2]
[399668141,1766596238654,-500.0,6.223e-05,2]
[399668143,1766596238665,-500.0,6.223e-05,2]
[399668145,1766596238675,-500.0,6.223e-05,2]
[399668147,1766596238685,-500.0,6.223e-05,2]
[399668149,1766596238696,-500.0,6.223e-05,2]
[399668150,1766596238706,-500.0,6.223e-05,2]
[399668152,1766596238716,-500.0,6.223e-05,2]
[399668154,1766596238727,-500.0,6.223e-05,2]
[399668156,1766596238737,-500.0,6.223e-05,2]
[399668158,1766596238747,-500.0,6.223e-05,2]
[399668160,1766596238758,-500.0,6.223e-05,2]
[399668162,1766596238768,-500.0,6.223e-05,2]
[399668164,1766596238779,-500.0,6.223e-05,2]
[399668166,1766596238790,-500.0,6.223e-05,2]
[399668168,1766596238800,-500.0,6.223e-05,2]
[399668170,1766596238810,-500.0,6.223e-05,2]
[399668172,1766596238820,-500.0,6.223e-05,2]
[399668174,1766596238830,-500.0,6.223e-05,2]
[399668176,1766596238840,-500.0,6.223e-05,2]
[399668178,1766596238850,-200.0,6.223e-05,2]
[399668180,1766596238859,-500.0,6.223e-05,2]
[399668182,1766596238869,-359.0,6.223e-05,2]
[399668184,1766596238879,-154.20799861,6.224e-05,2]
[399668186,1766596238889,-300.0,6.355e-05,2]
[399668188,1766596238900,-300.0,6.355e-05,2]
[399668190,1766596238910,-300.0,6.355e-05,2]
[399668192,1766596238921,-300.0,6.355e-05,2]
[399668194,1766596238931,-300.0,6.355e-05,2]
[399668196,1766596238942,-300.0,6.355e-05,2]
[399668198,1766596238952,-300.0,6.355e-05,2]
[399668200,1766596238962,-300.0,6.355e-05,2]
[399668202,1766596238973,-300.0,6.355e-05,2]
[399668204,1766596238983,-300.0,6.355e-05,2]
[399668206,1766596238993,-300.0,6.355e-05,2]
[399668208,1766596239004,-300.0,6.355e-05,2]
[399668210,1766596239014,-300.0,6.355e-05,2]
[399668212,1766596239026,-300.0,6.355e-05,2]
[399668214,1766596239037,-300.0,6.355e-05,2]
[399668216,1766596239048,-600.0,6.355e-05,2]
[399668218,1766596239058,-150.0,6.689e-05,2]
[399668220,1766596239069,-420.0,6.844e-05,2]
[399668222,1766596239079,-720.0,6.991e-05,2]
[399668224,1766596239089,-229.7022966,7.16e-05,2]
[399668226,1766596239100,-150.0,7.246e-05,2]
[399668228,1766596239111,-587.0,7.528e-05,2]
[399668230,1766596239121,-864.0,7.69e-05,2]
[399668232,1766596239132,-229.7022966,7.793e-05,2]
[399668234,1766596239142,-156.0,7.803e-05,2]
[399668236,1766596239152,-217.20392052,7.9e-05,2]
[399668238,1766596239162,-500.0,8.219e-05,2]
[399668239,1766596239173,-823.0,8.281e-05,2]
[399668241,1766596239183,-229.7022966,8.427e-05,2]
[399668243,1766596239194,-195.0,8.429e-05,2]
[399668245,1766596239204,-1000.0,8.459e-05,2]
[399668247,1766596239214,-698.31953267,8.567e-05,2]
[399668250,1766596239224,-154.2079986,8.574e-05,2]
[399668252,1766596239234,-234.0,8.991e-05,2]
[399668254,1766596239244,-229.7022966,9.06e-05,2]
[399668257,1766596239255,-1152.0,9.109e-05,2]
[399668259,1766596239265,-1000.0,9.305e-05,2]
[399668261,1766596239275,-244.0,9.305e-05,2]
[399668262,1766596239284,-273.0,9.552e-05,2]
[399668263,1766596239294,-229.9319989,9.693e-05,2]
[399668265,1766596239303,-250.33672196,9.9e-05,2]
[399668267,1766596239313,-312.0,0.00010114,2]
[399668269,1766596239322,-1000.0,0.00010236,2]
[399668271,1766596239332,-492.0,0.00010236,2]
[399668273,1766596239342,-351.01,0.00010574,2]
[399668275,1766596239352,-154.2079986,0.00010823,2]
[399668277,1766596239362,-390.01,0.00011137,2]
[399668279,1766596239374,-1000.0,0.00011259,2]
[399668282,1766596239384,-791.0,0.00011259,2]
[399668285,1766596239396,-150.0,0.00011553,2]
[399668288,1766596239405,-150.0,0.0001169,2]
[399668291,1766596239415,-269.77339454,0.00011827,2]
[399668294,1766596239424,-283.4695234,0.00011901,2]
[399668297,1766596239434,-1000.0,0.00012385,2]
[399668301,1766596239445,-1000.0,0.00012385,2]
[399668314,1766596239536,-250.0,0.00012751,2]
[399668316,1766596239546,-250.0,0.00012751,2]
[399668318,1766596239555,-2312.83697232,0.00012751,2]
[399668320,1766596239565,-151.0,0.00012751,2]
[399668322,1766596239575,-478.75725327,0.00012751,2]
[399668324,1766596239584,-250.0,0.00012751,2]
[399668326,1766596239593,-250.0,0.00012751,2]
[399668328,1766596239601,-250.0,0.00012751,2]
[399668330,1766596239611,-250.0,0.00012751,2]
[399668332,1766596239620,-174.61919141,0.00012751,2]
[399668334,1766596239629,-250.0,0.00012751,2]
[399668335,1766596239638,-250.0,0.00012751,2]
[399668337,1766596239648,-500.0,0.00012751,2]
[399668339,1766596239657,-500.0,0.00012751,2]
[399668341,1766596239667,-151.0,0.00012751,2]
[399668343,1766596239677,-151.0,0.00012751,2]
[399668345,1766596239686,-151.0,0.00012751,2]
[399668347,1766596239696,-174.61919141,0.00012751,2]
[399668349,1766596239706,-500.0,0.00012751,2]
[399668350,1766596239715,-500.0,0.00012751,2]
[399668352,1766596239724,-12353.7550988,0.00012829,2]
[399668354,1766596239733,-154.2079986,0.00013173,2]
[399668356,1766596239742,-19539.01937004,0.00013271,2]
[399668359,1766596239757,-2493.94227848,0.00013271,2]
[399668361,1766596239768,-2784.92282678,0.00013271,2]
[399668364,1766596239791,-17947.27866271,0.00013271,2]
[399668378,1766596240166,-8989.69916831,0.00013271,2]
[399668718,1766596245794,-379.04637905,0.00013271,2]
[399668719,1766596245806,-6635.13249359,0.00013271,2]
[399668776,1766597322413,3531.26875282,0.00013,30]
[399669156,1766597438001,-5000.0,5.866e-05,2]
[399669158,1766597438012,-504.0,5.866e-05,2]
[399669160,1766597438022,-174.14864161,5.925e-05,2]
[399669163,1766597438033,-634.73229401,5.956e-05,2]
[399669166,1766597438043,-150.0,6.201e-05,2]
[399669169,1766597438053,-600.0,6.345e-05,2]
[399669171,1766597438063,-150.0,6.765e-05,2]
[399669173,1766597438074,-720.0,6.98e-05,2]
[399669175,1766597438083,-150.0,7.329e-05,2]
[399669177,1766597438093,-864.0,7.678e-05,2]
[399669179,1766597438104,-300.0,7.888e-05,2]
[399669181,1766597438115,-500.0,7.888e-05,2]
[399669183,1766597438125,-254.87184329,7.888e-05,2]
[399669185,1766597438135,-157.97166386,7.888e-05,2]
[399669187,1766597438145,-500.0,7.888e-05,2]
[399669189,1766597438155,-500.0,7.888e-05,2]
[399669191,1766597438165,-500.0,7.888e-05,2]
[399669193,1766597438175,-500.0,7.888e-05,2]
[399669195,1766597438186,-500.0,7.888e-05,2]
[399669198,1766597438197,-500.0,7.888e-05,2]
[399669200,1766597438206,-500.0,7.888e-05,2]
[399669202,1766597438220,-500.0,7.888e-05,2]
[399669205,1766597438244,-500.0,7.888e-05,2]
[399669207,1766597438256,-500.0,7.888e-05,2]
[399669209,1766597438266,-164.90084225,7.888e-05,2]
[399669212,1766597438281,-335.09915775,7.888e-05,2]
[399669214,1766597438292,-500.0,7.888e-05,2]
[399669216,1766597438303,-446.57904592,7.888e-05,2]
[399669218,1766597438314,-270.348771,7.888e-05,2]
[399669220,1766597438325,-359.36369987,7.888e-05,2]
[399669222,1766597438335,-500.0,7.888e-05,2]
[399669224,1766597438346,-500.0,7.888e-05,2]
[399669226,1766597438357,-389.34575756,7.888e-05,2]
[399669228,1766597438368,-500.0,7.888e-05,2]
[399669231,1766597438379,-500.0,7.888e-05,2]
[399669233,1766597438390,-500.0,7.888e-05,2]
[399669235,1766597438400,-500.0,7.888e-05,2]
[399669237,1766597438411,-13733.20882595,7.889e-05,2]
[399669346,1766597440136,-300.0,5.982e-05,2]
[399669348,1766597440147,-324.75,7.889e-05,2]
[399669367,1766597445972,-302.0,7.889e-05,2]
[399669368,1766597445985,-1783.72,7.889e-05,2]
[399669369,1766597445998,-1592.02885992,7.889e-05,2]
[399669370,1766597446082,-2833.72109279,7.889e-05,2]
[399669464,1766598632188,-1231.3955753,5.92e-05,2]
[399669466,1766598632200,-3768.6044247,5.92e-05,2]
[399669468,1766598632211,-505.0,5.92e-05,2]
[399669470,1766598632220,-170.66566877,5.95e-05,2]
[399669472,1766598632229,-471.43,6e-05,2]
[399669474,1766598632239,-207.22329833,6.081e-05,2]
[399669476,1766598632248,-300.0,6.139e-05,2]
[399669478,1766598632258,-150.0,6.533e-05,2]
[399669480,1766598632267,-201.38548915,7.95e-05,2]
[399669482,1766598632277,-1041.66666667,8.364e-05,2]
[399669484,1766598632287,-300.0,9.427e-05,2]
[399669486,1766598632297,-500.0,9.427e-05,2]
[399669487,1766598632306,-612.82741508,9.428e-05,2]
[399669489,1766598632316,-160.7310051,9.428e-05,2]
[399669491,1766598632325,-500.0,9.428e-05,2]
[399669493,1766598632334,-501.68674875,9.428e-05,2]
[399669495,1766598632345,-500.0,9.428e-05,2]
[399669497,1766598632354,-500.0,9.428e-05,2]
[399669499,1766598632364,-500.0,9.428e-05,2]
[399669501,1766598632374,-500.0,9.428e-05,2]
[399669503,1766598632384,-387.38551907,9.428e-05,2]
[399669505,1766598632394,-1200.0,9.429e-05,2]
[399669507,1766598632403,-38817.68715066,9.429e-05,2]
[399669536,1766598638061,-3895.1999437,9.429e-05,2]
[399669718,1766598640317,-458.9508,9.429e-05,2]
[399669721,1766598640339,-413.97982596,9.429e-05,2]
[399669723,1766598640351,-9054.5946301,9.435e-05,2]
[399669725,1766598640362,-232.10530953,9.95e-05,2]
[399669728,1766598640373,-288.94205704,0.00010023,2]
[399669731,1766598640384,-1002.34862606,0.00010091,2]
[399669733,1766598640394,-1002.34862606,0.00010091,2]
[399669735,1766598640405,-1002.34862606,0.00010091,2]
[399669738,1766598640416,-1002.34862606,0.00010091,2]
[399669740,1766598640427,-126.04279451,0.00010091,2]
[399669882,1766598644516,-876.30583155,0.00010091,2]
[399669883,1766598644527,-628.04436845,0.00010091,2]
[399669884,1766598644620,-374.30425761,0.00010091,2]
[399669885,1766598644632,-1002.34862606,0.00010091,2]
[399669886,1766598644643,-1002.34862606,0.00010091,2]
[399669887,1766598644654,-60.3269856,0.00010091,2]
[399669894,1766598644783,-942.02164046,0.00010091,2]
[399669895,1766598644794,-998.52922165,0.00010091,2]
[399669906,1766598646729,-3.81940441,0.00010091,2]
[399669907,1766598646739,-1002.34862606,0.00010091,2]
[399669908,1766598646749,-1002.34862606,0.00010091,2]
[399669909,1766598646758,-1002.34862606,0.00010091,2]
[399669910,1766598646768,-1002.34862606,0.00010091,2]
[399669911,1766598646777,-919.37209135,0.00010091,2]
[399669912,1766598646789,-82.97653471,0.00010091,2]
[399669913,1766598646798,-1002.34862606,0.00010091,2]
[399669914,1766598646808,-600.0,0.00010301,2]
[399669915,1766598646818,-383.97049904,0.00010599,2]
[399669916,1766598646828,-196.62688879,0.00010959,2]
[399669917,1766598646839,-303.37311121,0.00010959,2]
[399669918,1766598646853,-272.12978616,0.00010959,2]
[399669919,1766598646863,-151.54109601,0.00011323,2]
[399669920,1766598646872,-151.0,0.00011323,2]
[399669921,1766598646882,-151.0,0.00011323,2]
[399669922,1766598646892,-151.0,0.00011323,2]
[399669923,1766598646902,-151.0,0.00011323,2]
[399669924,1766598646912,-151.0,0.00011323,2]
[399669925,1766598646921,-151.0,0.00011323,2]
[399669926,1766598646931,-151.0,0.00011323,2]
[399669927,1766598646940,-151.0,0.00011323,2]
[399669928,1766598646950,-151.0,0.00011323,2]
[399669929,1766598646959,-151.0,0.00011323,2]
[399669930,1766598646969,-151.0,0.00011323,2]
[399669931,1766598646979,-151.0,0.00011323,2]
[399669932,1766598646988,-151.0,0.00011323,2]
[399669933,1766598646997,-151.0,0.00011323,2]
[399669934,1766598647007,-151.0,0.00011323,2]
[399669935,1766598647016,-151.0,0.00011323,2]
[399669936,1766598647026,-151.0,0.00011323,2]
[399669937,1766598647036,-151.0,0.00011323,2]
[399669938,1766598647045,-151.0,0.00011323,2]
[399669939,1766598647055,-156.23124306,0.00011323,2]
[399669940,1766598647065,-12.46515973,0.00011331,2]
[399669965,1766599282926,2948.4,4.416e-05,2]
[399670011,1766599833523,-3311.68447926,8.893e-05,2]
[399670043,1766599838371,-772.04249589,8.893e-05,2]
[399670045,1766599838385,-916.27302485,8.893e-05,2]
[399670047,1766599838396,-107.46268164,8.972e-05,2]
[399670049,1766599838408,-526.80861021,8.972e-05,2]
[399670051,1766599838421,-100.51197289,8.972e-05,2]
[399670053,1766599838433,-546.0,8.983e-05,2]
[399670055,1766599838445,-162.44092912,8.99e-05,2]
[399670057,1766599838455,-506.4966699,9.393e-05,2]
[399670059,1766599838465,-191.68029637,0.0001099,2]
[399670061,1766599838475,-197.81327827,0.00011157,2]
[399670063,1766599838486,-355.83588335,0.00011744,2]
[399670065,1766599838496,-300.7791651,0.00011868,2]
[399670067,1766599838506,-58.6271568,0.00012264,2]
[399670069,1766599838518,-241.3728432,0.00012264,2]
[399670071,1766599838528,-114.44183339,0.00012265,2]
[399670073,1766599838541,-3640.08613463,0.00012265,2]
[399670076,1766599838558,-894.61203176,0.00012265,2]
[399670078,1766599838570,-10960.63689351,0.00012265,2]
[399670080,1766599838580,-343.40386964,0.00012265,2]
[399670082,1766599838590,-500.0,0.0001227,2]
[399670084,1766599838600,-500.0,0.0001227,2]
[399670086,1766599838610,-500.0,0.0001227,2]
[399670088,1766599838621,-500.0,0.0001227,2]
[399670090,1766599838631,-500.0,0.0001227,2]
[399670092,1766599838640,-500.0,0.0001227,2]
[399670094,1766599838650,-500.0,0.0001227,2]
[399670095,1766599838660,-500.0,0.0001227,2]
[399670097,1766599838669,-500.0,0.0001227,2]
[399670099,1766599838679,-500.0,0.0001227,2]
[399670101,1766599838689,-500.0,0.0001227,2]
[399670103,1766599838699,-500.0,0.0001227,2]
[399670104,1766599838710,-500.0,0.0001227,2]
[399670106,1766599838720,-500.0,0.0001227,2]
[399670108,1766599838730,-373.71688236,0.0001227,2]
[399670110,1766599838740,-141.08888535,0.0001227,2]
[399670476,1766599846360,-358.91111465,0.0001227,2]
[399670477,1766599846375,-215.33440778,0.00012524,2]
[399670478,1766599846385,-181.0801015,0.00012681,2]
[399670479,1766599846395,-478.75725327,0.00012681,2]
[399670480,1766599846405,-151.0,0.00012681,2]
[399670481,1766599846417,-151.0,0.00012681,2]
[399670482,1766599846428,-2398.4119403,0.00012681,2]
[399670483,1766599846439,-181.08010149,0.00012706,2]
[399670484,1766599846449,-1983.75495536,0.000129,2]
[399670491,1766600370792,10000.0,0.000154,120]
[399670492,1766600381263,10000.0,0.000154,120]
[399670499,1766600841365,-3233.29109281,0.000108,2]
[399670500,1766600841388,-4266.70890719,0.00010909,2]
[399670505,1766600889977,-578.0,0.000108,2]
[399670506,1766600890019,-4422.0,0.000108,2]
[399670507,1766600890065,-159.13972652,0.00010964,2]
[399670508,1766600890090,-1200.0,0.00011018,2]
[399670509,1766600890115,-300.0,0.00011241,2]
[399670510,1766600890141,-578.0,0.00011242,2]
[399670511,1766600890169,-300.0,0.00011703,2]
[399670512,1766600890193,-6107.4880563,0.00011704,2]
[399670513,1766600890293,-500.0,0.00012263,2]
[399670514,1766600890321,-461.27192697,0.00012263,2]
[399670515,1766600890346,-500.0,0.00012263,2]
[399670516,1766600890378,-500.0,0.00012263,2]
[399670517,1766600890404,-500.0,0.00012263,2]
[399670518,1766600890429,-500.0,0.00012263,2]
[399670519,1766600890454,-500.0,0.00012263,2]
[399670520,1766600890478,-500.0,0.00012263,2]
[399670521,1766600890502,-500.0,0.00012263,2]
[399670522,1766600890527,-500.0,0.00012263,2]
[399670523,1766600890552,-500.0,0.00012263,2]
[399670524,1766600890578,-500.0,0.00012263,2]
[399670525,1766600890604,-500.0,0.00012263,2]
[399670526,1766600890629,-169.69996285,0.00012263,2]
[399670527,1766600890655,-500.0,0.00012263,2]
[399670528,1766600890683,-500.0,0.00012263,2]
[399670529,1766600890710,-500.0,0.00012263,2]
[399670530,1766600890736,-500.0,0.00012263,2]
[399670531,1766600890761,-500.0,0.00012263,2]
[399670532,1766600890786,-500.0,0.00012263,2]
[399670533,1766600890813,-500.0,0.00012263,2]
[399670534,1766600890837,-500.0,0.00012263,2]
[399670535,1766600890861,-500.0,0.00012263,2]
[399670536,1766600890884,-500.0,0.00012263,2]
[399670537,1766600890908,-500.0,0.00012263,2]
[399670538,1766600890935,-500.0,0.00012263,2]
[399670539,1766600890958,-500.0,0.00012263,2]
[399670540,1766600890981,-341.98154347,0.00012263,2]
[399670541,1766600891005,-500.0,0.00012263,2]
[399670542,1766600891029,-500.0,0.00012263,2]
[399670543,1766600891053,-500.0,0.00012263,2]
[399670544,1766600891078,-500.0,0.00012263,2]
[399670545,1766600891103,-500.0,0.00012263,2]
[399670546,1766600891127,-500.0,0.00012263,2]
[399670547,1766600891151,-496.54966015,0.00012263,2]
[399670548,1766600891175,-500.0,0.00012263,2]
[399670549,1766600891200,-500.0,0.00012263,2]
[399670550,1766600891225,-500.0,0.00012263,2]
[399670551,1766600891251,-500.0,0.00012263,2]
[399670552,1766600891275,-500.0,0.00012263,2]
[399670553,1766600891300,-500.0,0.00012263,2]
[399670554,1766600891325,-500.0,0.00012263,2]
[399670555,1766600891350,-500.0,0.00012263,2]
[399670556,1766600896643,201.81306884,0.00011652,2]
[399670559,1766600899879,259.32424331,0.00012263,2]
[399670561,1766600909592,200.0,0.00011969,2]
[399670564,1766600913899,3914.36844467,0.00012264,2]
[399670600,1766601032288,-1085.63155533,0.00012264,2]
[399670602,1766601032298,-593.0,0.00012264,2]
[399670603,1766601032308,-302.05254675,0.00012266,2]
[399670604,1766601032317,-237.577341,0.00012266,2]
[399670606,1766601032327,-466.78363796,0.0001232,2]
[399670608,1766601032336,-200.0,0.00012469,2]
[399670610,1766601032346,-427.6392138,0.00012535,2]
[399670612,1766601032355,-829.83757859,0.00012811,2]
[399670614,1766601032364,-600.0,0.00012943,2]
[399670615,1766601032373,-187.78487729,0.00012964,2]
[399670617,1766601032382,-760.2474912,0.00013036,2]
[399670619,1766601032391,-14020.96974424,0.000131,2]
[399670622,1766601032402,-427.395,0.000131,2]
[399670624,1766601032413,-280.32,0.000131,2]
[399670626,1766601032429,-1125.97591378,0.000131,2]
[399670630,1766601032452,-2177.89216173,0.000131,2]
[399670632,1766601032464,-5220.31562736,0.000131,2]
[399670689,1766601038565,-371.33128261,0.00013099,2]
[399670691,1766601038576,-329.03021411,0.00013099,2]
[399670692,1766601038586,-500.0,0.00013099,2]
[399670694,1766601038596,-629.96666254,0.00013099,2]
[399670696,1766601038605,-332.94996224,0.00013099,2]
[399670698,1766601038615,-905.59756796,0.000131,2]
[399670749,1766601039128,-6504.32445403,0.000131,2]
[399670751,1766601039138,-374.0,0.000131,2]
[399670753,1766601039148,-168.0,0.00013112,2]
[399670755,1766601039157,-6694.19830703,0.00013173,2]
[399670757,1766601039169,-1362.7647881,0.00013192,2]
[399670759,1766601039179,-180.736,0.00013205,2]
[399670761,1766601039188,-478.75725327,0.00013263,2]
[399670763,1766601039200,-770.18860448,0.0001327,2]
[399670765,1766601039210,-770.18860448,0.0001327,2]
[399670767,1766601039220,-770.18860448,0.0001327,2]
[399670769,1766601039230,-540.49085031,0.0001327,2]
[399670771,1766601039240,-861.87959827,0.0001327,2]
[399670773,1766601039251,-861.87959827,0.0001327,2]
[399670775,1766601039260,-797.76670418,0.0001327,2]
[399670777,1766601039273,-64.11289409,0.0001327,2]
[399670779,1766601039283,-474.39385321,0.0001327,2]
[399670782,1766601039299,-387.48574506,0.0001327,2]
[399670783,1766601039308,-861.87959827,0.0001327,2]
[399670785,1766601039318,-25.07465148,0.0001327,2]
[399670894,1766601040614,-285.91739222,0.0001327,2]
[399670896,1766601040626,-550.88755457,0.0001327,2]
[399670898,1766601040636,-861.87959827,0.0001327,2]
[399670900,1766601040646,-861.87959827,0.0001327,2]
[399670902,1766601040656,-861.87959827,0.0001327,2]
[399670904,1766601040665,-861.87959827,0.0001327,2]
[399670906,1766601040675,-861.87959827,0.0001327,2]
[399670909,1766601040685,-861.87959827,0.0001327,2]
[399670911,1766601040698,-861.87959827,0.0001327,2]
[399670913,1766601040708,-861.87959827,0.0001327,2]
[399670915,1766601040719,-861.87959827,0.0001327,2]
[399670919,1766601040730,-623.796061,0.0001327,2]
[399671344,1766601046679,-337.2,0.00013099,2]
[399671346,1766601046692,-162.8,0.00013099,2]
[399671348,1766601046705,-332.94996224,0.00013099,2]
[399671350,1766601046715,-238.08353727,0.0001327,2]
[399671352,1766601046724,-861.87959827,0.0001327,2]
[399671355,1766601046734,-861.87959827,0.0001327,2]
[399671357,1766601046746,-861.87959827,0.0001327,2]
[399671359,1766601046757,-861.87959827,0.0001327,2]
[399671361,1766601046768,-3124.31354373,0.0001327,2]
[399671363,1766601046779,-2119.34437873,0.0001327,2]
[399671410,1766601057397,178.22649671,0.00012099,2]
[399671411,1766601062726,150.0,5.417e-05,2]
[399671412,1766601063154,150.0,5.909e-05,2]
[399671415,1766601127566,150.0,5.485e-05,2]
[399671416,1766601127922,150.0,5.983e-05,2]
[399671417,1766601201774,306.14716799,0.00012145,2]
[399671425,1766601652097,5000.0,0.00012263,2]
[399671426,1766601675023,5000.0,0.00012263,2]
[399671427,1766601698422,1240.50164592,0.00012263,2]
[399671539,1766602232501,-437.315,0.00011915,2]
[399671560,1766602232784,-762.685,0.00011915,2]
[399671562,1766602232794,-5000.0,0.00011916,2]
[399671564,1766602232803,-588.0,0.00011916,2]
[399671566,1766602232813,-1524.7579018,0.00012037,2]
[399671568,1766602232822,-155.96683191,0.00012208,2]
[399671570,1766602232833,-165.06283474,0.00012596,2]
[399671572,1766602232842,-397.37611865,0.0001278,2]
[399671574,1766602232852,-300.0,0.00012947,2]
[399671576,1766602232862,-153.54031506,0.00012999,2]
[399671578,1766602232872,-5857.42351866,0.00012999,2]
[399671580,1766602232881,-156.63906555,0.00012999,2]
[399671582,1766602232891,-165.06283473,0.00013,2]
[399671584,1766602232900,-50000.0,0.00013,2]
[399671586,1766602232909,-2201.38511466,0.00013066,2]
[399671588,1766602232919,-478.75725327,0.00013084,2]
[399671590,1766602232929,-203.83965413,0.0001309,2]
[399671592,1766602232939,-378.34359521,0.0001309,2]
[399671594,1766602232948,-573.66271682,0.0001309,2]
[399671596,1766602232957,-573.66271682,0.0001309,2]
[399671598,1766602232967,-573.66271682,0.0001309,2]
[399671600,1766602232976,-573.66271682,0.0001309,2]
[399671602,1766602232987,-573.66271682,0.0001309,2]
[399671603,1766602232996,-573.66271682,0.0001309,2]
[399671606,1766602233006,-573.66271682,0.0001309,2]
[399671607,1766602233020,-573.66271682,0.0001309,2]
[399671609,1766602233030,-573.66271682,0.0001309,2]
[399671612,1766602233040,-573.66271682,0.0001309,2]
[399671614,1766602233051,-573.66271682,0.0001309,2]
[399671615,1766602233061,-573.66271682,0.0001309,2]
[399671617,1766602233070,-573.66271682,0.0001309,2]
[399671619,1766602233080,-573.66271682,0.0001309,2]
[399671621,1766602233091,-573.66271682,0.0001309,2]
[399671623,1766602233101,-262.214825,0.0001309,2]
[399671658,1766602236174,5000.0,0.00011704,2]
[399672032,1766602266820,600.0,0.00013,30]
[399672071,1766602340739,150.0,5.404e-05,2]
[399672072,1766602341165,150.0,5.895e-05,2]
[399672287,1766602863276,807.4880563,0.00011704,2]
[399672370,1766603065543,300.0,0.00011703,2]
[399672516,1766603432123,-305.68599881,0.00011586,2]
[399672551,1766603437825,-4694.31400119,0.00011586,2]
[399672553,1766603437835,-583.0,0.00011586,2]
[399672555,1766603437846,-156.59778079,0.00011698,2]
[399672557,1766603437856,-200.0477769,0.00012035,2]
[399672559,1766603437866,-300.0,0.00012079,2]
[399672561,1766603437876,-3968.19328527,0.0001208,2]
[399672564,1766603437888,-2811.55433653,0.0001208,2]
[399672566,1766603437898,-1295.32459533,0.00012556,2]
[399672568,1766603437909,-2477.00289333,0.00012713,2]
[399672570,1766603437918,-153.54031506,0.00012905,2]
[399672572,1766603437928,-1201.5929232,0.00012954,2]
[399672574,1766603437936,-1271.8619481,0.00012954,2]
[399672576,1766603437947,-500.0,0.00013004,2]
[399672578,1766603437957,-264.84051665,0.00013004,2]
[399672580,1766603437967,-500.0,0.00013004,2]
[399672582,1766603437978,-500.0,0.00013004,2]
[399672584,1766603437988,-500.0,0.00013004,2]
[399672586,1766603437998,-500.0,0.00013004,2]
[399672588,1766603438007,-500.0,0.00013004,2]
[399672590,1766603438017,-500.0,0.00013004,2]
[399672592,1766603438028,-500.0,0.00013004,2]
[399672594,1766603438038,-500.0,0.00013004,2]
[399672596,1766603438048,-500.0,0.00013004,2]
[399672598,1766603438059,-299.45633724,0.00013004,2]
[399672600,1766603438070,-500.0,0.00013004,2]
[399672602,1766603438081,-500.0,0.00013004,2]
[399672604,1766603438092,-576.49627686,0.00013004,2]
[399672606,1766603438103,-576.49627686,0.00013004,2]
[399672608,1766603438113,-576.49627686,0.00013004,2]
[399672610,1766603438124,-576.49627686,0.00013004,2]
[399672612,1766603438135,-576.49627686,0.00013004,2]
[399672614,1766603438144,-576.49627686,0.00013004,2]
[399672616,1766603438155,-576.49627686,0.00013004,2]
[399672618,1766603438165,-576.49627686,0.00013004,2]
[399672620,1766603438175,-576.49627686,0.00013004,2]
[399672622,1766603438187,-576.49627686,0.00013004,2]
[399672624,1766603438197,-576.49627686,0.00013004,2]
[399672626,1766603438208,-576.49627686,0.00013004,2]
[399672628,1766603438217,-576.49627686,0.00013004,2]
[399672630,1766603438227,-576.49627686,0.00013004,2]
[399672632,1766603438237,-1033.36957633,0.00013004,2]
[399672634,1766603438247,-21324.84073494,0.00013005,2]
[399672638,1766603438278,-315.91800896,0.00013005,2]